[Event "DVM U14 2021"]
[Site "Willingen"]
[Date "2022.08.13"]
[Round "1"]
[White "Römer, Uri"]
[Black "Schaudienst, Arvid"]
[Result "0-1"]
[ECO "B21"]
[WhiteElo "1485"]
[BlackElo "1431"]
[Annotator "NA RC COMBH"]
[PlyCount "106"]
[EventDate "2022.08.12"]
[EventType "team-tourn"]
[EventRounds "7"]
[EventCountry "GER"]
[SourceTitle "playchess.com"]
[Source "ChessBase"]
[SourceQuality "1"]
[TimeControl "40/5400+30:1800+30"]

1. e4 {[%emt 0:00:06]} c5 {[%emt 0:00:00]} 2. d4 {[%emt 0:01:06]} cxd4 {[%emt 0:00:00]} 3. c3 {[%emt 0:02:02]} d3 {[%emt 0:03:31]} 4. Nf3 {[%emt 0:01:38]} d6 {[%emt 0:02:33]} 5. Bxd3 {[%emt 0:00:18]} Nf6 {[%emt 0:05:40]} 6. O-O {[%emt 0:03:43]} g6 {[%emt 0:01:32]} 7. Re1 {[%emt 0:01:30]} Bg7 {[%emt 0:03:33]} 8. e5 {[%emt 0:03:27]} dxe5 {[%emt 0:02:12]} 9. Bb5+ {[%emt 0:05:12]} Bd7 {[%emt 0:10:35]} 10. Na3 {[%emt 0:11:09]} e4 {[%emt 0:03:38]} 11. Ne5 {[%emt 0:01:27]} O-O {[%emt 0:08:00]} 12. Bg5 {[%emt 0:22:10]} Bxb5 {[%emt 0:03:16]} 13. Qxd8 {[%emt 0:02:44]} Rxd8 {[%emt 0:01:29]} 14. Nxb5 {[%emt 0:01:39]} Ne8 {[%emt 0:16:21]} 15. Rad1 {[%emt 0:02:02]} Rxd1 {[%emt 0:00:17]} 16. Rxd1 {[%emt 0:00:20]} Bxe5 {[%emt 0:00:42]} 17. Rd8 {[%emt 0:04:13]} f6 {[%emt 0:06:34]} 18. Rxe8+ {[%emt 0:00:13]} Kf7 {[%emt 0:10:55]} 19. Rh8 {[%emt 0:02:15]} fxg5 {[%emt 0:00:31]} 20. Rxh7+ {[%emt 0:00:13]} Kf8 {[%emt 0:04:36]} 21. Kf1 {[%emt 0:04:45]} Na6 {[%emt 0:02:11]} 22. Nd4 {[%emt 0:01:37]} Nc7 {[%emt 0:01:50]} 23. f3 {[%emt 0:03:53]} exf3 {[%emt 0:00:19]} 24. Nxf3 {[%emt 0:00:10]} Bf6 {[%emt 0:01:54]} 25. g4 {[%emt 0:00:20]} Kg8 {[%emt 0:00:13]} 26. Rh3 {[%emt 0:00:18]} Rd8 {[%emt 0:00:24]} 27. Ke2 {[%emt 0:02:03]} Nd5 {[%emt 0:00:59]} 28. Rg3 {[%emt 0:01:42]} Nf4+ {[%emt 0:01:28]} 29. Ke3 {[%emt 0:00:50]} Rd3+ {[%emt 0:01:10]} 30. Ke4 {[%emt 0:06:11]} Rd6 {[%emt 0:02:21]} 31. Nd4 {[%emt 0:03:28]} Bxd4 {[%emt 0:00:09]} 32. cxd4 {[%emt 0:00:09]} Re6+ {[%emt 0:00:21]} 33. Kf3 {[%emt 0:00:47]} Re2 {[%emt 0:00:47]} 34. Rg1 {[%emt 0:02:05]} Rxh2 {[%emt 0:01:13]} 35. Re1 {[%emt 0:00:23]} Kf7 {[%emt 0:00:54]} 36. Re5 {[%emt 0:03:27]} Kf6 {[%emt 0:01:23]} 37. Rb5 {[%emt 0:00:55]} b6 {[%emt 0:01:01]} 38. a4 {[%emt 0:01:20]} Nd3 {[%emt 0:01:02]} 39. b3 {[%emt 0:03:20]} Rh3+ {[%emt 0:01:55]} 40. Kg2 {[%emt 0:00:28]} Nf4+ {[%emt 0:00:28]} 41. Kf2 {[%emt 0:31:17]} Rd3 {[%emt 0:31:01]} 42. a5 {[%emt 0:01:31]} bxa5 {[%emt 0:00:18]} 43. Rxa5 {[%emt 0:00:17]} Rxb3 {[%emt 0:00:29]} 44. Rxa7 {[%emt 0:00:12]} Rd3 {[%emt 0:00:00]} 45. Ra6+ {[%emt 0:00:00]} Ne6 {[%emt 0:00:00]} 46. Rb6 {[%emt 0:00:00]} Rxd4 {[%emt 0:00:00]} 47. Kf3 {[%emt 0:00:00]} Rd6 {[%emt 0:00:00]} 48. Rb8 {[%emt 0:00:00]} Rd3+ {[%emt 0:00:00]} 49. Kf2 {[%emt 0:00:00]} Nf4 {[%emt 0:00:00]} 50. Rf8+ {[%emt 0:00:00]} Ke5 {[%emt 0:00:00]} 51. Ra8 {[%emt 0:00:00]} Ke4 {[%emt 0:00:00]} 52. Ra2 {[%emt 0:00:00]} Rf3+ {[%emt 0:00:00]} 53. Ke1 {[%emt 0:00:00]} Nd3+ 0-1

[Event "DVM U14 2021"]
[Site "Willingen"]
[Date "2022.08.13"]
[Round "1"]
[White "Borgert, Alexander"]
[Black "Leonard, Etienne Peter"]
[Result "*"]
[ECO "D31"]
[WhiteElo "1477"]
[BlackElo "1373"]
[Annotator "NA RC COMBH"]
[PlyCount "102"]
[EventDate "2022.08.12"]
[EventType "team-tourn"]
[EventRounds "7"]
[EventCountry "GER"]
[SourceTitle "playchess.com"]
[Source "ChessBase"]
[SourceQuality "1"]
[TimeControl "40/5400+30:1800+30"]

1. d4 {[%emt 0:00:02]} d5 {[%emt 0:00:10]} 2. c4 {[%emt 0:00:05]} c6 {[%emt 0:00:27]} 3. Nf3 {[%emt 0:00:06]} e6 {[%emt 0:00:10]} 4. Nc3 {[%emt 0:00:07]} dxc4 {[%emt 0:00:10]} 5. e4 {[%emt 0:00:06]} b5 {[%emt 0:00:26]} 6. d5 {[%emt 0:00:30]} Bb4 {[%emt 0:01:55]} 7. dxc6 {[%emt 0:03:48]} Qxd1+ {[%emt 0:01:13]} 8. Kxd1 {[%emt 0:00:05]} Bxc3 {[%emt 0:00:19]} 9. bxc3 {[%emt 0:00:07]} Nxc6 {[%emt 0:00:12]} 10. a4 {[%emt 0:02:01]} bxa4 {[%emt 0:01:27]} 11. Rxa4 {[%emt 0:00:10]} Bb7 {[%emt 0:01:22]} 12. Bxc4 {[%emt 0:00:31]} Nf6 {[%emt 0:02:16]} 13. Bb5 {[%emt 0:02:45]} a6 {[%emt 0:01:09]} 14. Bd3 {[%emt 0:01:36]} Rd8 {[%emt 0:01:51]} 15. Ke2 {[%emt 0:00:12]} Ra8 {[%emt 0:01:06]} 16. Bg5 {[%emt 0:00:10]} Nd7 {[%emt 0:00:38]} 17. Be3 {[%emt 0:00:14]} O-O {[%emt 0:00:54]} 18. Rb1 {[%emt 0:00:25]} Bc8 {[%emt 0:01:35]} 19. Rba1 {[%emt 0:01:58]} Ndb8 {[%emt 0:01:12]} 20. e5 {[%emt 0:07:14]} a5 {[%emt 0:03:12]} 21. Bb5 {[%emt 0:01:52]} Ba6 {[%emt 0:00:58]} 22. c4 {[%emt 0:01:45]} Rc8 {[%emt 0:01:24]} 23. Bb6 {[%emt 0:03:14]} Bxb5 {[%emt 0:00:59]} 24. cxb5 {[%emt 0:00:18]} Nd7 {[%emt 0:00:53]} 25. bxc6 {[%emt 0:01:09]} Nxb6 {[%emt 0:00:15]} 26. Rxa5 {[%emt 0:00:09]} Rxa5 {[%emt 0:00:33]} 27. Rxa5 {[%emt 0:00:08]} Rxc6 {[%emt 0:00:12]} 28. Nd4 {[%emt 0:00:43]} Rc8 {[%emt 0:00:20]} 29. Ra6 {[%emt 0:03:39]} Nd5 {[%emt 0:00:37]} 30. Rc6 {[%emt 0:08:18]} Rxc6 {[%emt 0:00:26]} 31. Nxc6 {[%emt 0:00:07]} g6 {[%emt 0:00:28]} 32. g3 {[%emt 0:00:08]} Kg7 {[%emt 0:00:25]} 33. Nd8 {[%emt 0:00:20]} Nc3+ {[%emt 0:00:21]} 34. Kd3 {[%emt 0:00:34]} Nd5 {[%emt 0:00:34]} 35. f4 {[%emt 0:00:11]} h5 {[%emt 0:00:20]} 36. h4 {[%emt 0:00:48]} Ne7 {[%emt 0:00:49]} 37. Ke4 {[%emt 0:00:28]} Nf5 {[%emt 0:00:24]} 38. Kf3 {[%emt 0:00:13]} Nd4+ {[%emt 0:00:33]} 39. Kf2 {[%emt 0:01:25]} Nf5 {[%emt 0:00:35]} 40. Nb7 {[%emt 0:00:29]} Nh6 {[%emt 0:03:13]} 41. Nd6 {[%emt 0:31:58]} Ng4+ {[%emt 0:30:31]} 42. Kg2 {[%emt 0:01:07]} Kg8 {[%emt 0:01:41]} 43. Ne8 {[%emt 0:00:10]} Kf8 {[%emt 0:01:09]} 44. Nf6 {[%emt 0:04:05]} Nxf6 {[%emt 0:00:48]} 45. exf6 {[%emt 0:00:05]} Ke8 {[%emt 0:00:15]} 46. g4 {[%emt 0:00:15]} Kd7 {[%emt 0:00:26]} 47. g5 {[%emt 0:02:07]} Kd6 {[%emt 0:00:14]} 48. Kf3 {[%emt 0:00:20]} Kd5 {[%emt 0:00:12]} 49. Ke3 {[%emt 0:00:16]} Kc4 {[%emt 0:01:18]} 50. Ke4 {[%emt 0:00:29]} Kc5 {[%emt 0:00:38]} 51. Ke5 {[%emt 0:00:54] 0.00} Kc6 {[%emt 0:00:18]} *

[Event "DVM U14 2021"]
[Site "Willingen"]
[Date "2022.08.13"]
[Round "1"]
[White "Lichtinger, Simon"]
[Black "Schoen, Florian"]
[Result "*"]
[ECO "C52"]
[WhiteElo "1473"]
[BlackElo "1688"]
[Annotator "NA RC COMBH"]
[PlyCount "21"]
[EventDate "2022.08.12"]
[EventType "team-tourn"]
[EventRounds "7"]
[EventCountry "GER"]
[SourceTitle "playchess.com"]
[Source "ChessBase"]
[SourceQuality "1"]
[TimeControl "40/5400+30:1800+30"]

1. e4 {[%emt 0:00:03]} e5 {[%emt 0:00:13]} 2. Nf3 {[%emt 0:00:04]} Nc6 {[%emt 0:00:05]} 3. Bc4 {[%emt 0:00:02]} Bc5 {[%emt 0:00:05]} 4. b4 {[%emt 0:00:03]} Bxb4 {[%emt 0:00:06]} 5. c3 {[%emt 0:00:04]} Ba5 {[%emt 0:00:58]} 6. d4 {[%emt 0:00:07]} d6 {[%emt 0:01:43]} 7. O-O {[%emt 0:19:01]} Bg4 {[%emt 0:06:52]} 8. Qa4 {[%emt 0:12:24]} Bxf3 {[%emt 0:11:49]} 9. gxf3 {[%emt 0:11:17]} exd4 {[%emt 0:00:39]} 10. cxd4 {[%emt 0:09:32]} Kf8 {[%emt 0:08:20]} 11. Bb2 {[%emt 0:18:49]} *

[Event "DVM U14 2021"]
[Site "Willingen"]
[Date "2022.08.13"]
[Round "1"]
[White "Fock, Madiha"]
[Black "Tomasjan, Samuel"]
[Result "0-1"]
[ECO "C45"]
[WhiteElo "1472"]
[BlackElo "1741"]
[Annotator "NA RC COMBH"]
[PlyCount "60"]
[EventDate "2022.08.12"]
[EventType "team-tourn"]
[EventRounds "7"]
[EventCountry "GER"]
[SourceTitle "playchess.com"]
[Source "ChessBase"]
[SourceQuality "1"]
[TimeControl "40/5400+30:1800+30"]

1. e4 {[%emt 0:00:01]} e5 {[%emt 0:00:14]} 2. Nf3 {[%emt 0:00:08]} Nc6 {[%emt 0:00:06]} 3. d4 {[%emt 0:01:11]} exd4 {[%emt 0:00:09]} 4. Nxd4 {[%emt 0:00:05]} Bc5 {[%emt 0:00:06]} 5. Be3 {[%emt 0:00:35]} Qf6 {[%emt 0:00:28]} 6. c3 {[%emt 0:00:21]} Nge7 {[%emt 0:02:12]} 7. Bc4 {[%emt 0:06:34]} Bb6 {[%emt 0:07:59]} 8. O-O {[%emt 0:02:27]} O-O {[%emt 0:01:34]} 9. f4 {[%emt 0:07:28]} d6 {[%emt 0:01:29]} 10. Be2 {[%emt 0:04:17]} Re8 {[%emt 0:02:10]} 11. Qd3 {[%emt 0:06:18]} Nxd4 {[%emt 0:08:07]} 12. cxd4 {[%emt 0:04:31]} Nc6 {[%emt 0:03:47]} 13. e5 {[%emt 0:12:52]} Bf5 {[%emt 0:08:08]} 14. Qd2 {[%emt 0:07:40]} Qg6 {[%emt 0:02:32]} 15. Bf3 {[%emt 0:06:22]} dxe5 {[%emt 0:04:10]} 16. dxe5 {[%emt 0:03:39]} Rad8 {[%emt 0:00:46]} 17. Qf2 {[%emt 0:01:17]} Nd4 {[%emt 0:04:26]} 18. Nd2 {[%emt 0:11:23]} Nc2 {[%emt 0:03:46]} 19. Bxb6 {[%emt 0:01:29]} Qxb6 {[%emt 0:01:24]} 20. Rad1 {[%emt 0:11:21]} Ne3 {[%emt 0:02:16]} 21. Nb3 {[%emt 0:00:55]} Nxd1 {[%emt 0:01:37]} 22. Rxd1 {[%emt 0:01:02]} Qxf2+ {[%emt 0:00:50]} 23. Kxf2 {[%emt 0:00:06]} Bc2 {[%emt 0:00:33]} 24. Rxd8 {[%emt 0:03:19]} Rxd8 {[%emt 0:00:09]} 25. Na5 {[%emt 0:00:58]} Bb1 {[%emt 0:00:55]} 26. a3 {[%emt 0:00:33]} Rd2+ {[%emt 0:00:13]} 27. Kg3 {[%emt 0:01:39]} Rxb2 {[%emt 0:00:22]} 28. Bxb7 {[%emt 0:00:25]} Ra2 {[%emt 0:00:30]} 29. Nc4 {[%emt 0:01:08]} Bd3 {[%emt 0:00:10]} 30. Bd5 {[%emt 0:01:32]} c6 {[%emt 0:00:12]} 0-1

[Event "DVM U14 2021"]
[Site "Willingen"]
[Date "2022.08.13"]
[Round "1"]
[White "Marcziter, Alex"]
[Black "Lipinsky, Pierre"]
[Result "*"]
[ECO "B24"]
[WhiteElo "1466"]
[BlackElo "1560"]
[Annotator "NA RC COMBH"]
[PlyCount "31"]
[EventDate "2022.08.12"]
[EventType "team-tourn"]
[EventRounds "7"]
[EventCountry "GER"]
[SourceTitle "playchess.com"]
[Source "ChessBase"]
[SourceQuality "1"]
[TimeControl "40/5400+30:1800+30"]

1. e4 {[%emt 0:00:01]} c5 {[%emt 0:00:18]} 2. Nc3 {[%emt 0:00:15]} d6 {[%emt 0:01:08]} 3. g3 {[%emt 0:00:28]} Nf6 {[%emt 0:01:38]} 4. Bg2 {[%emt 0:00:25]} Nc6 {[%emt 0:02:42]} 5. d3 {[%emt 0:02:10]} e6 {[%emt 0:03:48]} 6. Nh3 {[%emt 0:03:49]} h6 {[%emt 0:02:04]} 7. f4 {[%emt 0:07:37]} Bd7 {[%emt 0:02:11]} 8. O-O {[%emt 0:02:01]} Qc8 {[%emt 0:03:15]} 9. Nf2 {[%emt 0:02:40]} Be7 {[%emt 0:07:54]} 10. g4 {[%emt 0:07:11]} e5 {[%emt 0:02:17]} 11. f5 {[%emt 0:10:35]} g6 {[%emt 0:04:21]} 12. Kh1 {[%emt 0:10:49]} h5 {[%emt 0:03:35]} 13. g5 {[%emt 0:05:29]} Ng4 {[%emt 0:04:18]} 14. Nxg4 {[%emt 0:00:13]} hxg4 {[%emt 0:00:41]} 15. Qxg4 {[%emt 0:01:58]} Nd4 {[%emt 0:07:01] 0.31} 16. Rf2 *

[Event "DVM U14 2021"]
[Site "Willingen"]
[Date "2022.08.13"]
[Round "1"]
[White "Rudolph, Alexander"]
[Black "Wegener, Moritz"]
[Result "1/2-1/2"]
[ECO "B33"]
[WhiteElo "1417"]
[BlackElo "1202"]
[Annotator "NA RC COMBH"]
[PlyCount "110"]
[EventDate "2022.08.12"]
[EventType "team-tourn"]
[EventRounds "7"]
[EventCountry "GER"]
[SourceTitle "playchess.com"]
[Source "ChessBase"]
[SourceQuality "1"]
[TimeControl "40/5400+30:1800+30"]

1. e4 {[%emt 0:00:01]} c5 {[%emt 0:00:31]} 2. Nf3 {[%emt 0:00:32]} Nc6 {[%emt 0:01:06]} 3. d4 {[%emt 0:00:27]} cxd4 {[%emt 0:02:41]} 4. Nxd4 {[%emt 0:00:50]} Nf6 {[%emt 0:01:17]} 5. Nc3 {[%emt 0:00:42]} e5 {[%emt 0:01:49]} 6. Ndb5 {[%emt 0:00:20]} d6 {[%emt 0:02:35]} 7. Bg5 {[%emt 0:00:28]} a6 {[%emt 0:01:22]} 8. Na3 {[%emt 0:01:26]} b5 {[%emt 0:01:42]} 9. Nd5 {[%emt 0:00:18]} Be7 {[%emt 0:00:45]} 10. Bxf6 {[%emt 0:00:25]} Bxf6 {[%emt 0:00:39]} 11. c3 {[%emt 0:00:36]} Bg5 {[%emt 0:02:56]} 12. Nc2 {[%emt 0:01:03]} O-O {[%emt 0:02:38]} 13. a4 {[%emt 0:00:38]} Rb8 {[%emt 0:09:41]} 14. Ncb4 {[%emt 0:05:33]} Nxb4 {[%emt 0:02:17]} 15. Nxb4 {[%emt 0:00:37]} Qb6 {[%emt 0:05:40]} 16. Nd5 {[%emt 0:05:25]} Qc6 {[%emt 0:02:26]} 17. Qh5 {[%emt 0:05:08]} h6 {[%emt 0:05:06]} 18. Qxg5 {[%emt 0:00:13]} Qxd5 {[%emt 0:01:05]} 19. Qxg7+ {[%emt 0:01:04]} Kxg7 {[%emt 0:00:15]} 20. exd5 {[%emt 0:00:05]} bxa4 {[%emt 0:01:39]} 21. Ra2 {[%emt 0:00:24]} Rb6 {[%emt 0:05:18]} 22. Bd3 {[%emt 0:00:58]} Bb7 {[%emt 0:00:39]} 23. c4 {[%emt 0:00:19]} a3 {[%emt 0:01:24]} 24. bxa3 {[%emt 0:01:10]} Rb3 {[%emt 0:01:06]} 25. Kd2 {[%emt 0:00:23]} Rb8 {[%emt 0:03:03]} 26. Bc2 {[%emt 0:02:35]} Rb6 {[%emt 0:00:36]} 27. Kc3 {[%emt 0:00:50]} Rc8 {[%emt 0:01:49]} 28. Rd1 {[%emt 0:01:02]} Rb5 {[%emt 0:01:36]} 29. Kd3 {[%emt 0:00:53]} Rbc5 {[%emt 0:02:25]} 30. Bb3 {[%emt 0:00:21]} Bxd5 {[%emt 0:01:01]} 31. Ke3 {[%emt 0:02:01]} Bxc4 {[%emt 0:03:31]} 32. Bxc4 {[%emt 0:00:16]} Rxc4 {[%emt 0:00:09]} 33. Rxd6 {[%emt 0:00:03]} Ra4 {[%emt 0:02:13]} 34. Rd3 {[%emt 0:00:56]} Rcc4 {[%emt 0:03:48]} 35. f3 {[%emt 0:00:20]} e4 {[%emt 0:02:00]} 36. fxe4 {[%emt 0:00:42]} Rxe4+ {[%emt 0:00:15]} 37. Kd2 {[%emt 0:00:08]} Rac4 {[%emt 0:00:49]} 38. Rc2 {[%emt 0:00:26]} Rxc2+ {[%emt 0:00:47]} 39. Kxc2 {[%emt 0:00:41]} Re2+ {[%emt 0:02:11]} 40. Rd2 {[%emt 0:00:33]} Re3 {[%emt 0:03:04]} 41. Kb2 {[%emt 0:30:57]} f6 {[%emt 0:30:39]} 42. g3 {[%emt 0:00:45]} Kg6 {[%emt 0:00:15]} 43. Rd6 {[%emt 0:00:33]} Re2+ {[%emt 0:00:24]} 44. Kb3 {[%emt 0:00:07]} Rxh2 {[%emt 0:00:11]} 45. Ka4 {[%emt 0:00:08]} Rh5 {[%emt 0:00:44]} 46. Rxa6 {[%emt 0:00:30]} Rg5 {[%emt 0:00:22]} 47. Ra8 {[%emt 0:00:12]} Kh5 {[%emt 0:00:48]} 48. Kb4 {[%emt 0:01:21]} Rxg3 {[%emt 0:00:13]} 49. a4 {[%emt 0:00:11]} f5 {[%emt 0:00:53]} 50. a5 {[%emt 0:02:22]} f4 {[%emt 0:00:31]} 51. a6 {[%emt 0:00:13]} Rg1 {[%emt 0:00:49]} 52. a7 {[%emt 0:00:46]} Ra1 {[%emt 0:00:07]} 53. Kb5 {[%emt 0:00:19]} f3 {[%emt 0:00:35]} 54. Kb6 {[%emt 0:00:36]} f2 {[%emt 0:03:57]} 55. Rf8 {[%emt 0:00:10]} Rb1+ {[%emt 0:00:15]} 1/2-1/2

[Event "DVM U14 2021"]
[Site "Willingen"]
[Date "2022.08.13"]
[Round "1"]
[White "Yue, Qihang"]
[Black "Pichl, Christoph"]
[Result "0-1"]
[ECO "E53"]
[WhiteElo "1401"]
[BlackElo "1617"]
[Annotator "NA RC COMBH"]
[PlyCount "158"]
[EventDate "2022.08.12"]
[EventType "team-tourn"]
[EventRounds "7"]
[EventCountry "GER"]
[SourceTitle "playchess.com"]
[Source "ChessBase"]
[SourceQuality "1"]
[TimeControl "40/5400+30:1800+30"]

1. d4 {[%emt 0:00:10]} Nf6 {[%emt 0:00:00]} 2. c4 {[%emt 0:00:05]} e6 {[%emt 0:00:00]} 3. Nc3 {[%emt 0:00:09]} Bb4 {[%emt 0:00:25]} 4. Nf3 {[%emt 0:00:39]} d5 {[%emt 0:00:23]} 5. e3 {[%emt 0:00:35]} O-O {[%emt 0:00:10]} 6. Bd3 {[%emt 0:02:24]} c5 {[%emt 0:00:29]} 7. cxd5 {[%emt 0:00:36]} Nxd5 {[%emt 0:00:50]} 8. Qc2 {[%emt 0:00:57]} h6 {[%emt 0:02:07]} 9. a3 {[%emt 0:17:10]} Bxc3+ {[%emt 0:00:15]} 10. bxc3 {[%emt 0:00:05]} cxd4 {[%emt 0:02:06]} 11. cxd4 {[%emt 0:02:14]} Nc6 {[%emt 0:02:56]} 12. O-O {[%emt 0:06:57]} Bd7 {[%emt 0:02:52]} 13. e4 {[%emt 0:02:09]} Nf6 {[%emt 0:01:52]} 14. Be3 {[%emt 0:20:43]} Ne7 {[%emt 0:10:36]} 15. Ne5 {[%emt 0:01:32]} Bc6 {[%emt 0:11:45]} 16. Nxc6 {[%emt 0:00:19]} Nxc6 {[%emt 0:00:56]} 17. Qb2 {[%emt 0:01:14]} Qd7 {[%emt 0:09:54]} 18. h3 {[%emt 0:03:00]} Rfd8 {[%emt 0:01:40]} 19. d5 {[%emt 0:11:14]} exd5 {[%emt 0:01:40]} 20. Bxh6 {[%emt 0:09:20]} Qe6 {[%emt 0:05:40]} 21. exd5 {[%emt 0:04:56]} Qxd5 {[%emt 0:01:58]} 22. Rfd1 {[%emt 0:03:49]} Qe5 {[%emt 0:04:03]} 23. Qxb7 {[%emt 0:00:51]} Na5 {[%emt 0:17:48]} 24. Bf4 {[%emt 0:02:13]} Qxf4 {[%emt 0:01:29]} 25. Qb5 {[%emt 0:04:25]} Qc7 {[%emt 0:07:21]} 26. Rac1 {[%emt 0:01:08]} Qb6 {[%emt 0:02:09]} 27. Qa4 {[%emt 0:02:02]} Rd6 {[%emt 0:05:15]} 28. Qf4 {[%emt 0:00:38]} Rad8 {[%emt 0:01:42]} 29. Bc2 {[%emt 0:01:25]} Nb7 30. Rxd6 {[%emt 3:23:09]} Qxd6 {[%emt 0:01:53]} 31. Qg5 {[%emt 0:00:00]} Qd2 {[%emt 0:02:34]} 32. Qxd2 {[%emt 0:00:00]} Rxd2 {[%emt 0:00:26]} 33. Bb1 {[%emt 0:00:00]} Nd6 {[%emt 0:01:20]} 34. f3 {[%emt 0:00:00]} Kf8 {[%emt 0:00:26]} 35. Kh2 {[%emt 0:00:00]} Rb2 {[%emt 0:01:16]} 36. Bd3 {[%emt 0:00:00]} Rb3 {[%emt 0:00:43]} 37. Rd1 {[%emt 0:00:00]} Rxa3 {[%emt 0:00:33]} 38. Bf1 {[%emt 0:00:00]} Ke7 {[%emt 0:00:31]} 39. Rc1 {[%emt 0:00:00]} Nfe8 {[%emt 0:00:26]} 40. Re1+ {[%emt 0:00:00]} Kd7 {[%emt 0:00:22]} 41. Rd1 {[%emt 0:00:00]} a6 {[%emt 0:30:32]} 42. Bc4 {[%emt 0:00:00]} f6 {[%emt 0:00:27]} 43. Bf7 {[%emt 0:00:00]} Kc7 {[%emt 0:00:19]} 44. Rc1+ {[%emt 0:00:00]} Kb6 {[%emt 0:00:53]} 45. Rb1+ {[%emt 0:00:00]} Ka7 {[%emt 0:00:00]} 46. Bg6 {[%emt 0:00:00]} Rc3 {[%emt 0:00:00]} 47. Re1 {[%emt 0:00:00]} Rc8 {[%emt 0:00:00]} 48. Re7+ {[%emt 0:00:00]} Kb6 {[%emt 0:00:00]} 49. g4 {[%emt 0:00:00]} a5 {[%emt 0:00:00]} 50. Re3 {[%emt 0:00:00]} a4 {[%emt 0:00:00]} 51. f4 {[%emt 0:00:00]} Nc7 {[%emt 0:00:00]} 52. Ra3 {[%emt 0:00:00]} Ka5 {[%emt 0:00:00]} 53. Bc2 {[%emt 0:00:00]} Nd5 {[%emt 0:00:00]} 54. Rxa4+ {[%emt 0:00:00]} Kb5 {[%emt 0:00:00]} 55. Bb3 {[%emt 0:00:00]} Rc3 {[%emt 0:00:00]} 56. Bd1 {[%emt 0:00:00]} Rd3 {[%emt 0:00:00]} 57. Be2 {[%emt 0:00:00]} Kxa4 {[%emt 0:00:00]} 58. Bxd3 {[%emt 0:00:00]} Nxf4 {[%emt 0:00:00]} 59. Bc2+ {[%emt 0:00:00]} Kb4 {[%emt 0:00:00]} 60. Kg3 {[%emt 0:00:00]} Ne6 {[%emt 0:00:00]} 61. h4 {[%emt 0:00:00]} Kc3 {[%emt 0:00:00]} 62. Bb1 {[%emt 0:00:00]} Kd4 {[%emt 0:00:00]} 63. Kf3 {[%emt 0:00:00]} Ke5 {[%emt 0:00:00]} 64. Bg6 {[%emt 0:00:00]} Nb5 {[%emt 0:00:00]} 65. Bd3 {[%emt 0:00:00]} Nc3 {[%emt 0:02:40]} 66. g5 {[%emt 0:00:00]} fxg5 {[%emt 0:00:34]} 67. hxg5 {[%emt 0:00:00]} Nxg5+ {[%emt 0:00:45]} 68. Kg4 {[%emt 0:00:00]} Kf6 {[%emt 0:01:00]} 69. Bf5 {[%emt 0:00:00]} Nd5 {[%emt 0:01:07]} 70. Bd3 {[%emt 0:00:00]} Nf7 {[%emt 0:00:39]} 71. Bb1 {[%emt 0:00:00]} Nh6+ {[%emt 0:01:34]} 72. Kg3 {[%emt 0:00:00]} Kg5 {[%emt 0:00:41]} 73. Be4 {[%emt 0:00:00]} Nf5+ {[%emt 0:00:33]} 74. Kf3 {[%emt 0:00:00]} Nh4+ {[%emt 0:00:32]} 75. Kg3 {[%emt 0:00:00]} Ne7 {[%emt 0:01:59]} 76. Bb1 {[%emt 0:00:00]} Nef5+ {[%emt 0:00:39]} 77. Kf2 {[%emt 0:00:00]} Kf4 {[%emt 0:00:49]} 78. Ba2 {[%emt 0:00:00]} g5 {[%emt 0:00:43]} 79. Bd5 {[%emt 0:00:00]} Nd6 0-1

[Event "DVM U14 2021"]
[Site "Willingen"]
[Date "2022.08.13"]
[Round "1"]
[White "Tran, Anh Duc Kevin"]
[Black "Gotfried, Elias"]
[Result "1/2-1/2"]
[ECO "C02"]
[WhiteElo "1398"]
[BlackElo "1589"]
[Annotator "NA RC COMBH"]
[PlyCount "46"]
[EventDate "2022.08.12"]
[EventType "team-tourn"]
[EventRounds "7"]
[EventCountry "GER"]
[SourceTitle "playchess.com"]
[Source "ChessBase"]
[SourceQuality "1"]
[TimeControl "40/5400+30:1800+30"]

1. e4 {[%emt 0:00:03]} e6 {[%emt 0:00:00]} 2. d4 {[%emt 0:00:06]} d5 {[%emt 0:00:20]} 3. e5 {[%emt 0:00:03]} c5 {[%emt 0:00:05]} 4. c3 {[%emt 0:00:05]} Nc6 {[%emt 0:00:18]} 5. Nf3 {[%emt 0:00:07]} Qb6 {[%emt 0:01:24]} 6. b3 {[%emt 0:01:23]} cxd4 {[%emt 0:00:54]} 7. cxd4 {[%emt 0:00:50]} Nh6 {[%emt 0:01:21]} 8. Bb2 {[%emt 0:01:08]} Bb4+ {[%emt 0:02:41]} 9. Nc3 {[%emt 0:20:36]} Nf5 {[%emt 0:04:11]} 10. a3 {[%emt 0:03:50]} Be7 {[%emt 0:04:27]} 11. Na4 {[%emt 0:02:57]} Qd8 {[%emt 0:01:08]} 12. Be2 {[%emt 0:01:00]} Bd7 {[%emt 0:01:37]} 13. Rc1 {[%emt 0:01:32]} O-O {[%emt 0:00:34]} 14. O-O {[%emt 0:07:20]} f6 {[%emt 0:04:52]} 15. Nc5 {[%emt 0:00:53]} Bxc5 {[%emt 0:00:31]} 16. Rxc5 {[%emt 0:00:30]} fxe5 {[%emt 0:01:19]} 17. dxe5 {[%emt 0:01:37]} Be8 {[%emt 0:03:52]} 18. Nd4 {[%emt 0:00:52]} Ncxd4 {[%emt 0:00:13]} 19. Bxd4 {[%emt 0:00:51]} Nxd4 {[%emt 0:00:25]} 20. Qxd4 {[%emt 0:00:19]} b6 {[%emt 0:01:50]} 21. Rc3 {[%emt 1:18:21]} Rc8 {[%emt 0:00:02]} 22. Rfc1 {[%emt 0:00:03]} Rxc3 23. Rxc3 Bg6 {[%emt 0:00:02]} 1/2-1/2